[Event "45th FIDE Olympiad 2024"]
[Site "Budapest"]
[Date "2024.09.18"]
[Round "7.34"]
[White "Christiansen, Johan-Sebastian"]
[Black "Horvath, Dominik"]
[Result "1-0"]
[ECO "C22"]
[WhiteElo "2661"]
[BlackElo "2559"]
[Annotator "TA"]
[PlyCount "62"]
[EventDate "2024.09.05"]
[EventType "team-tourn"]
[EventCountry "HUN"]
[SourceTitle "playchess.com"]
[Source "ChessBase"]
[SourceQuality "1"]
[WhiteTeam "Norway"]
[BlackTeam "Austria"]
[WhiteTeamCountry "NOR"]
[BlackTeamCountry "AUT"]
[TimeControl "40/5400+30:1800+30"]

{[%evp 9,62,-21,-15,-30,-7,-15,0,-8,-4,-34,-32,-32,-25,-30,-24,-33,0,-59,-10,-15,23,-1,54,68,64,55,70,56,57,35,62,57,125,125,114,112,115,116,107,78,157,141,190,100,107,95,94,101,86,90,97,105,104,109,108]} 1. e4 {[%emt 0:00:21]} e5 {[%emt 0:00:11]} 2. d4 {[%emt 0:00:13]} exd4 {[%emt 0:04:27]} 3. Qxd4 {[%emt 0:00:24]} Nc6 {[%emt 0:01:10]} 4. Qc4 {[%emt 0:00:05]} Nf6 {[%emt 0:00:37]} 5. Nc3 {[%emt 0:00:06]} Bb4 {[%emt 0:02:32]} 6. Bd2 {[%emt 0:00:10]} O-O {[%emt 0:00:20] aiming for ...Bxc3.} 7. O-O-O {[%emt 0:00:06]} Re8 {[%emt 0:00:03] Threatening ...Bxc3.} 8. f3 {[%emt 0:00:09] The position is equal.} a5 {[%emt 0:12:11]} 9. g4 {[%emt 0:02:21]} (9. a3 $5) 9... d6 {[%emt 0:11:35][%cal Bd7d6,Bd6d5][%mdl 32]} 10. Qe2 {[%emt 0:01:58]} Be6 {[%emt 0:02:14]} 11. Kb1 {[%emt 0:07:04]} d5 {[%emt 0:08:49]} 12. g5 $1 {[%emt 0:07:17]} Nd7 {[%emt 0:00:28]} 13. Qf2 {[%emt 0:23:45]} (13. Bh3 $11) 13... Nb6 {[%emt 0:09:53]} (13... Bc5 $15 {feels stronger.} 14. Qg3 Bd6) 14. Nge2 $11 {[%emt 0:12:03][%cal Bg1e2,Be2f4,Bf4h5,Bh5g3][%mdl 32]} dxe4 {[%emt 0:05:23]} 15. Bc1 {[%emt 0:04:57]} Qe7 {[%emt 0:01:01]} (15... e3 $1 $11 16. Bxe3 Nd5) 16. Nxe4 $14 {[%emt 0:00:47]} Rad8 {[%emt 0:08:50]} 17. Rxd8 {[%emt 0:01:24]} Qxd8 {[%emt 0:00:03]} 18. Nf4 {[%emt 0:03:47] Inhibits Qd5.} Bf5 $1 {[%emt 0:00:29]} 19. Bd3 {[%emt 0:02:10][%cal Oe4f6]} Qd7 {[%emt 0:09:20]} 20. Nh5 {[%emt 0:03:51]} Nd5 {[%emt 0:01:42] Repels Nef6+} (20... Be7 $1 $14) 21. Nhg3 $16 {[%emt 0:01:59] Nxf5 would now be deadly.} Bg6 {[%emt 0:06:54]} 22. h4 {[%emt 0:12:37][%cal Bh2h4,Bh4h5][%mdl 32]} Ne5 {[%emt 0:00:16]} 23. Be2 {[%emt 0:00:15]} Bxe4 {[%emt 0:09:37]} 24. fxe4 {[%emt 0:02:55]} Ne7 {[%emt 0:01:49]} ({Black should play} 24... Nb6) 25. h5 {[%emt 0:00:19] h6 is the strong threat.} Nc8 {[%emt 0:02:06] [#]} (25... g6 $16 {was worth a try.} 26. a3 Bd6) 26. Bf4 {[%emt 0:05:43]} (26. g6 $1 $18) 26... Bf8 {[%emt 0:00:40] [#] White is better.} 27. g6 $1 {[%emt 0:01:05][%mdl 512] Black must now prevent Bxe5.} Nd6 {[%emt 0:00:42]} 28. Rf1 {[%emt 0:02:47] Strongly threatening Bxe5. White is more active.} f6 {[%emt 0:00:37]} 29. gxh7+ {[%emt 0:00:10]} Kxh7 {[%emt 0:00:21]} 30. Bc1 {[%emt 0:00:28]} Qe6 {[%emt 0:00:26]} 31. Qg2 {[%emt 0:00:59]} b5 {[%emt 0:00:00] Weighted Error Value: White=0.10 (very precise) /Black=0.18 (very precise) .  Mistake:       	White=2     	Black=5      Inaccurate:     	White=1     	Black=3      OK:         	White=9     	Black=8      Best:        	White=2     	Black=2      Strong:       	White=1     	Black=1} 1-0

[Event "45th FIDE Olympiad 2024"]
[Site "Budapest"]
[Date "2024.09.18"]
[Round "7.34"]
[White "David, Leroy Debblay"]
[Black "Mafnas, Peter"]
[Result "1-0"]
[WhiteElo "1904"]
[BlackElo "1886"]
[Annotator "RC"]
[PlyCount "123"]
[EventDate "2024.09.05"]
[EventType "team-tourn"]
[EventCountry "HUN"]
[WhiteTeam "Liberia"]
[BlackTeam "Guam"]
[WhiteTeamCountry "LBR"]
[BlackTeamCountry "GMA"]
[TimeControl "40/5400+30:1800+30"]

1. d4 d5 2. c4 c6 3. Nc3 Nf6 4. Nf3 Bf5 5. cxd5 Nxd5 6. Qb3 Nb6 7. e4 Be6 8. Qc2 g6 9. Bd3 Bg7 10. Be3 Bc4 11. O-O N8d7 12. Nd2 Bxd3 13. Qxd3 Nc5 14. Qc2 Bxd4 15. Bxd4 Qxd4 16. Rad1 Qd3 17. Qc1 O-O 18. Nf3 Qa6 19. Qg5 Ne6 20. Qxe7 Rfe8 21. Qf6 Rf8 22. Ne5 Ng7 23. Ng4 Qc4 24. Rd6 Kh8 25. Ne5 Qc5 26. Rfd1 Kg8 27. Nd3 Qh5 28. Nf4 Qc5 29. R6d3 Nc4 30. Na4 Qe5 31. Qxe5 Nxe5 32. R3d2 g5 33. Ne2 Ne6 34. Nd4 Nf4 35. Nf5 Ne6 36. Nc3 Nc4 37. Rd7 Nc5 38. R7d4 Nxb2 39. R1d2 Nbd3 40. R4xd3 Nxd3 41. Rxd3 Rfd8 42. Re3 Rd2 43. g4 Rad8 44. e5 R8d3 45. Rxd3 Rxd3 46. Ne4 Kf8 47. Nxg5 c5 48. Nxh7+ Ke8 49. Nf6+ Kf8 50. Nd6 b6 51. h4 a6 52. Nd7+ Kg7 53. Nxb6 Rd2 54. a4 Rb2 55. a5 Ra2 56. Nbc4 Rc2 57. Kg2 Kg6 58. Kg3 Kg7 59. f3 Rc1 60. Kf4 Rd1 61. Kg5 Rd4 62. Nf5+ 1-0

[Event "45th FIDE Olympiad 2024"]
[Site "Budapest"]
[Date "2024.09.18"]
[Round "7.35"]
[White "Blohberger, Felix"]
[Black "Amar, Elham"]
[Result "1-0"]
[ECO "E01"]
[WhiteElo "2520"]
[BlackElo "2539"]
[Annotator "RC"]
[PlyCount "141"]
[EventDate "2024.09.05"]
[EventType "team-tourn"]
[EventCountry "HUN"]
[SourceTitle "playchess.com"]
[Source "ChessBase"]
[SourceQuality "1"]
[WhiteTeam "Austria"]
[BlackTeam "Norway"]
[WhiteTeamCountry "AUT"]
[BlackTeamCountry "NOR"]
[TimeControl "40/5400+30:1800+30"]

1. d4 {[%emt 0:00:04]} Nf6 {[%emt 0:00:10]} 2. c4 {[%emt 0:00:06]} e6 {[%emt 0:00:14]} 3. g3 {[%emt 0:00:05]} c5 {[%emt 0:09:14]} 4. Nf3 {[%emt 0:00:07]} cxd4 {[%emt 0:00:52]} 5. Nxd4 {[%emt 0:00:08]} d5 {[%emt 0:00:30]} 6. Bg2 {[%emt 0:00:15]} e5 {[%emt 0:00:59]} 7. Nf3 {[%emt 0:00:10]} d4 {[%emt 0:00:26]} 8. O-O {[%emt 0:00:26]} Nc6 {[%emt 0:00:30]} 9. e3 {[%emt 0:00:07]} Be7 {[%emt 0:00:58]} 10. exd4 {[%emt 0:00:19]} exd4 {[%emt 0:00:21]} 11. Bf4 {[%emt 0:00:55]} O-O {[%emt 0:01:54]} 12. Ne5 {[%emt 0:01:46]} Qb6 {[%emt 0:04:21]} 13. Re1 {[%emt 0:08:04]} Be6 {[%emt 0:06:24]} 14. Nd2 {[%emt 0:07:23]} Rac8 {[%emt 0:12:53]} 15. Nd3 {[%emt 0:32:26]} Nb4 {[%emt 0:08:06]} 16. Nxb4 {[%emt 0:00:43]} Bxb4 {[%emt 0:02:25]} 17. b3 {[%emt 0:03:56]} Bg4 {[%emt 0:11:00]} 18. Bf3 {[%emt 0:06:10]} Bxf3 {[%emt 0:03:50]} 19. Qxf3 {[%emt 0:00:08]} Rfe8 {[%emt 0:03:17]} 20. Rad1 {[%emt 0:04:26]} h6 {[%emt 0:11:30]} 21. Re5 {[%emt 0:06:58]} Qc6 {[%emt 0:03:51]} 22. h4 {[%emt 0:03:13]} Nd7 {[%emt 0:10:29]} 23. Qxc6 {[%emt 0:08:59]} bxc6 {[%emt 0:00:07]} 24. Rxe8+ {[%emt 0:04:03]} Rxe8 {[%emt 0:00:05]} 25. Kf1 {[%emt 0:02:16]} Nf8 {[%emt 0:03:44]} 26. Nf3 {[%emt 0:01:07]} Ne6 {[%emt 0:01:56]} 27. Ne5 {[%emt 0:01:30]} c5 {[%emt 0:01:56]} 28. Nd3 {[%emt 0:00:59]} a5 {[%emt 0:00:52]} 29. Bc1 {[%emt 0:03:36]} Bc3 {[%emt 0:00:40]} 30. Ba3 {[%emt 0:00:06]} Rc8 {[%emt 0:00:49]} 31. h5 {[%emt 0:01:14]} Kf8 {[%emt 0:00:59]} 32. f4 {[%emt 0:01:14]} g6 {[%emt 0:00:31]} 33. hxg6 {[%emt 0:02:00]} fxg6 {[%emt 0:00:03]} 34. g4 {[%emt 0:00:16]} Kg7 {[%emt 0:00:40]} 35. Kg2 {[%emt 0:00:14]} Bb4 {[%emt 0:00:25]} 36. Bc1 {[%emt 0:00:23]} Bc3 {[%emt 0:00:55]} 37. Kf3 {[%emt 0:01:08]} Kf6 {[%emt 0:00:26]} 38. Rh1 {[%emt 0:00:17]} Kg7 {[%emt 0:00:21]} 39. Ke4 {[%emt 0:00:51]} Nf8 {[%emt 0:00:44]} 40. Ne5 {[%emt 0:01:46]} Nh7 {[%emt 0:00:31]} 41. g5 {[%emt 0:07:55]} hxg5 {[%emt 0:03:18]} 42. fxg5 {[%emt 0:00:05]} Nf8 {[%emt 0:08:14]} 43. Rh3 {[%emt 0:05:59]} a4 {[%emt 0:04:38]} 44. Rf3 {[%emt 0:02:14]} axb3 {[%emt 0:00:09]} 45. axb3 {[%emt 0:00:05]} Rb8 {[%emt 0:03:03]} 46. Rf7+ {[%emt 0:04:20]} Kg8 {[%emt 0:00:11]} 47. Re7 {[%emt 0:00:24]} Rxb3 {[%emt 0:01:47]} 48. Nd3 {[%emt 0:01:08]} Rb8 {[%emt 0:03:42]} 49. Kd5 {[%emt 0:03:30]} Rc8 {[%emt 0:01:26]} 50. Bf4 {[%emt 0:01:42]} Nh7 {[%emt 0:00:45]} 51. Kd6 {[%emt 0:04:42]} Ba5 {[%emt 0:03:37]} 52. Kd7 {[%emt 0:01:48]} Rf8 {[%emt 0:01:24]} 53. Re8 {[%emt 0:01:10]} Rxe8 {[%emt 0:04:03]} 54. Kxe8 {[%emt 0:00:04]} Bb4 {[%emt 0:00:29]} 55. Ke7 {[%emt 0:00:28]} Ba3 {[%emt 0:00:40]} 56. Nf2 {[%emt 0:00:18]} Bb2 {[%emt 0:00:32]} 57. Nd3 {[%emt 0:00:55]} Ba3 {[%emt 0:00:04]} 58. Bd2 {[%emt 0:01:38]} Kg7 {[%emt 0:00:32]} 59. Kd6 {[%emt 0:00:57]} Nf8 {[%emt 0:00:50]} 60. Nxc5 {[%emt 0:00:14]} Kf7 {[%emt 0:00:34]} 61. Kd5 {[%emt 0:00:24]} Bxc5 {[%emt 0:00:29]} 62. Kxc5 {[%emt 0:00:05]} Ke6 {[%emt 0:00:32]} 63. Kxd4 {[%emt 0:00:21]} Kd7 {[%emt 0:00:26]} 64. Kd5 {[%emt 0:01:08]} Nh7 {[%emt 0:00:35]} 65. Bf4 {[%emt 0:00:21]} Nf8 {[%emt 0:00:14]} 66. c5 {[%emt 0:00:33]} Nh7 {[%emt 0:00:09]} 67. c6+ {[%emt 0:00:43]} Kc8 {[%emt 0:00:17]} 68. Kd6 {[%emt 0:00:12]} Kd8 {[%emt 0:00:09]} 69. Be5 {[%emt 0:00:08]} Kc8 {[%emt 0:00:16]} 70. Bf6 {[%emt 0:00:29]} Nf8 {[%emt 0:00:05]} 71. Be7 {[%emt 0:00:19]} 1-0

[Event "45th FIDE Olympiad 2024"]
[Site "Budapest"]
[Date "2024.09.18"]
[Round "7.36"]
[White "Urkedal, Frode Olav Olsen"]
[Black "Baidetskyi, Valentin"]
[Result "1-0"]
[ECO "E16"]
[WhiteElo "2546"]
[BlackElo "2512"]
[Annotator "TA"]
[PlyCount "83"]
[EventDate "2024.09.05"]
[EventType "team-tourn"]
[EventCountry "HUN"]
[SourceTitle "playchess.com"]
[Source "ChessBase"]
[SourceQuality "1"]
[WhiteTeam "Norway"]
[BlackTeam "Austria"]
[WhiteTeamCountry "NOR"]
[BlackTeamCountry "AUT"]
[TimeControl "40/5400+30:1800+30"]

{[%evp 13,83,13,12,8,16,10,15,15,20,18,41,29,45,47,60,52,58,56,58,67,126,82,103,97,118,59,79,46,68,0,0,0,25,0,32,-67,-86,-130,254,275,285,254,415,415,585,454,439,427,438,447,424,429,456,449,1047,668,661,661,844,642,1000,933,1080,1067,1085,1046,1206,1178,29983,29984,29982,29982]} 1. d4 {[%emt 0:00:02]} Nf6 {[%emt 0:00:11]} 2. c4 {[%emt 0:00:05]} e6 {[%emt 0:00:04]} 3. g3 {[%emt 0:00:10]} d5 {[%emt 0:00:21]} 4. Bg2 {[%emt 0:00:09]} Bb4+ {[%emt 0:00:17]} 5. Nd2 {[%emt 0:00:19]} O-O {[%emt 0:00:56]} 6. Ngf3 {[%emt 0:00:17]} b6 {[%emt 0:03:53]} 7. O-O {[%emt 0:02:57]} Bb7 {[%emt 0:00:45]} 8. b3 {[%emt 0:01:53][%cal Bb2b3,Bb3a4,Ba4a5][%mdl 32]} Nbd7 {[%emt 0:19:07]} 9. Bb2 {[%emt 0:00:12]} a5 {[%emt 0:05:24]} 10. Qc2 {[%emt 0:00:59] The position is equal.} a4 {[%emt 0:15:31]} 11. bxa4 {[%emt 0:06:19]} Ra7 {[%emt 0:06:49]} 12. cxd5 {[%emt 0:08:25]} exd5 {[%emt 0:00:46]} 13. Rfc1 {[%emt 0:01:18]} Bd6 {[%emt 0:08:51]} 14. Bc3 {[%emt 0:02:35]} Re8 {[%emt 0:04:35]} 15. e3 {[%emt 0:01:47]} Qe7 {[%emt 0:10:28] [#]} 16. a5 $1 {[%emt 0:04:48]} b5 {[%emt 0:02:18]} (16... h6 $14) (16... bxa5 17. a4) 17. Nb3 {[%emt 0:01:14][%cal Ob3c5]} Ne4 {[%emt 0:00:21]} 18. Bb2 {[%emt 0:03:17]} c6 {[%emt 0:00:36]} 19. Ne1 {[%emt 0:10:01]} (19. Ne5 $16) 19... h5 $14 {[%emt 0:03:04]} 20. Nd3 {[%emt 0:04:13]} h4 {[%emt 0:00:56][%cal Rh4g3]} 21. a3 {[%emt 0:09:00]} (21. Ne5 $14) 21... hxg3 $11 {[%emt 0:01:03]} 22. hxg3 {[%emt 0:00:02]} Qg5 {[%emt 0:01:02][%cal Oe4f2]} (22... Nxg3 $5 23. fxg3 Qxe3+ 24. Kf1 Re6 $11 (24... Qxg3 25. Re1 $16)) 23. Re1 {[%emt 0:04:18]} Re6 {[%emt 0:03:07] [#]} 24. Ne5 {[%emt 0:07:11] [#]} Rh6 $1 $15 {[%emt 0:07:46][%cal Og5h5]} 25. Nxd7 {[%emt 0:02:43] [#]} (25. Nd2 Ndf6) 25... Bxg3 $2 {[%emt 0:00:09][%mdl 8192] This costs Black the game.} 26. fxg3 $18 {[%emt 0:01:02]} Qxg3 {[%emt 0:00:09]} 27. Nbc5 {[%emt 0:01:16]} Qh2+ $2 {[%emt 0:00:58]} (27... Bc8 28. Nxe4 Qh2+ 29. Kf1 Bxd7) 28. Kf1 {[%emt 0:00:01]} Ng3+ {[%emt 0:03:01]} 29. Kf2 {[%emt 0:00:05][%cal Oe1h1] Black must now prevent Rh1!} Rg6 {[%emt 0:00:48] [#]} 30. Qxg6 {[%emt 0:05:30]} fxg6 {[%emt 0:00:04] [#]} 31. Rh1 $1 {[%emt 0:00:13][%mdl 512]} Nxh1+ {[%emt 0:00:05]} 32. Rxh1 {[%emt 0:00:03]} Qd6 {[%emt 0:01:49] Black is weak on the dark squares} 33. Bh3 {[%emt 0:00:01]} Kf7 {[%emt 0:00:23]} (33... Bc8 $142) 34. Be6+ {[%emt 0:00:40]} Ke7 {[%emt 0:00:05]} 35. Bc1 {[%emt 0:00:03]} Kd8 {[%emt 0:00:52]} 36. Ne5 {[%emt 0:11:32] Strongly threatening Nf7+.} Kc7 {[%emt 0:01:12]} 37. Nf7 {[%emt 0:00:26]} Qe7 {[%emt 0:00:29]} 38. e4 {[%emt 0:00:25] Intending Bf4+ and mate.} Rxa5 {[%emt 0:00:42]} 39. Bg5 {[%emt 0:01:46]} Qe8 {[%emt 0:00:01]} 40. Bd8+ {[%emt 0:00:26] This pair of bishops is nice.} Kb8 {[%emt 0:00:40]} 41. Bxa5 {[%emt 0:30:08]} Ka7 {[%emt 0:30:39]} 42. Rh8 {[%emt 0:00:06] Weighted Error Value: White=0.47/Black=0.68.  Loses game:     	---       	Black=1      Mistake:       	White=3     	Black=3      Inaccurate:     	White=4     	Black=1      OK:         	White=9     	Black=5      Best:        	White=2     	Black=2      Strong:       	---       	Black=1      Brilliant:      	White=2     	---} 1-0

[Event "45th FIDE Olympiad 2024"]
[Site "Budapest"]
[Date "2024.09.18"]
[Round "7.36"]
[White "Arnold, Smith"]
[Black "Doria, Daniel"]
[Result "1-0"]
[WhiteElo "1915"]
[BlackElo "1745"]
[PlyCount "111"]
[EventDate "2024.09.05"]
[EventType "team-tourn"]
[EventCountry "HUN"]
[WhiteTeam "Liberia"]
[BlackTeam "Guam"]
[WhiteTeamCountry "LBR"]
[BlackTeamCountry "GMA"]
[TimeControl "40/5400+30:1800+30"]

1. e4 e5 2. Nf3 Nc6 3. Bb5 a6 4. Ba4 Nf6 5. O-O b5 6. Bb3 Bc5 7. Qe2 d6 8. c3 Bg4 9. d3 O-O 10. Bg5 h6 11. Bh4 Rb8 12. h3 Be6 13. Nbd2 Bxb3 14. Nxb3 Bb6 15. Kh1 Qe7 16. Rad1 Qe6 17. Rfe1 Rfe8 18. Qc2 Nh5 19. Nbd2 Ne7 20. Nf1 Ng6 21. Bg3 Nxg3+ 22. Nxg3 Nf4 23. Kh2 a5 24. a3 Qf6 25. d4 h5 26. Re3 c5 27. dxe5 dxe5 28. c4 g6 29. cxb5 c4 30. Rc3 h4 31. Nf1 Rbc8 32. Ne3 Ne6 33. Nd5 Qd8 34. Nxb6 Qxb6 35. a4 Nd4 36. Nxd4 exd4 37. Rxc4 Rxc4 38. Qxc4 Qd6+ 39. Kg1 Rxe4 40. f3 Re8 41. Qc6 Qe7 42. Qe4 Qxe4 43. fxe4 Rxe4 44. Kf2 d3 45. b3 Kg7 46. Kf3 Rb4 47. Rxd3 g5 48. Ke2 g4 49. Kd2 f5 50. Kc3 Re4 51. Rd5 gxh3 52. gxh3 f4 53. Rd4 Re3+ 54. Kc4 f3 55. Rf4 Kg6 56. b6 1-0

[Event "45th FIDE Olympiad 2024"]
[Site "Budapest"]
[Date "2024.09.18"]
[Round "7.37"]
[White "Deac, Bogdan-Daniel"]
[Black "Duda, Jan-Krzysztof"]
[Result "1-0"]
[ECO "D27"]
[WhiteElo "2680"]
[BlackElo "2732"]
[Annotator "TA"]
[PlyCount "77"]
[EventDate "2024.09.05"]
[EventType "team-tourn"]
[EventCountry "HUN"]
[SourceTitle "playchess.com"]
[Source "ChessBase"]
[SourceQuality "1"]
[WhiteTeam "Romania"]
[BlackTeam "Poland"]
[WhiteTeamCountry "ROU"]
[BlackTeamCountry "POL"]
[TimeControl "40/5400+30:1800+30"]

{[%evp 11,77,33,28,8,19,7,7,5,12,0,45,12,15,15,28,26,5,8,11,0,16,2,20,2,0,11,123,124,120,120,123,121,122,117,107,112,112,97,101,102,110,103,110,110,116,116,116,116,116,116,116,117,117,119,124,124,124,131,131,110,108,81,81,81,80,63,576,568]} 1. d4 {[%emt 0:00:02]} d5 {[%emt 0:00:07]} 2. Nf3 {[%emt 0:00:25]} Nf6 {[%emt 0:00:07]} 3. c4 {[%emt 0:00:04]} dxc4 {[%emt 0:00:08]} 4. e3 {[%emt 0:00:18]} e6 {[%emt 0:00:04]} 5. Bxc4 {[%emt 0:00:15]} c5 {[%emt 0:00:07]} 6. O-O {[%emt 0:00:59]} a6 {[%emt 0:00:04]} 7. Re1 {[%emt 0:09:31]} Nc6 {[%emt 0:04:17]} 8. Nc3 {[%emt 0:02:38]} b5 {[%emt 0:01:59]} 9. Bd3 {[%emt 0:00:06] The position is equal.} Bb7 {[%emt 0:00:24]} 10. a4 {[%emt 0:00:05]} cxd4 {[%emt 0:16:30]} 11. exd4 {[%emt 0:00:23]} Be7 {[%emt 0:00:04]} 12. axb5 {[%emt 0:06:32]} axb5 {[%emt 0:00:40]} 13. Rxa8 {[%emt 0:00:03]} Bxa8 {[%emt 0:00:07]} 14. Bxb5 {[%emt 0:05:02]} O-O {[%emt 0:00:02]} 15. Be3 {[%emt 0:02:30]} Nb4 {[%emt 0:03:32]} 16. Ne5 {[%emt 0:00:22]} Nbd5 {[%emt 0:03:59]} 17. Bc6 {[%emt 0:00:51]} Bxc6 {[%emt 0:05:34]} 18. Nxc6 {[%emt 0:00:06]} Qb6 {[%emt 0:00:07]} (18... Qa8 $11 {remains equal.} 19. Qa4 Bd6) 19. Nxd5 $16 {[%emt 0:09:20]} Nxd5 {[%emt 0:01:13]} 20. Nxe7+ {[%emt 0:00:19]} Nxe7 {[%emt 0:00:05] [#]} 21. d5 $1 {[%emt 0:00:51][%mdl 512]} Qxb2 {[%emt 0:00:12]} 22. dxe6 {[%emt 0:14:16]} Qb4 {[%emt 0:01:26]} 23. exf7+ {[%emt 0:06:25]} Rxf7 {[%emt 0:00:34]} 24. Qc1 {[%emt 0:07:34] Bc5 would now be deadly.} (24. Bg5 {with more complications.} Qc5 25. Qd2 Ng6 26. Re8+) 24... h6 {[%emt 0:02:34]} 25. Bc5 {[%emt 0:12:32]} Qb7 {[%emt 0:00:27]} 26. h4 {[%emt 0:00:28]} Qc6 {[%emt 0:02:17]} 27. g3 {[%emt 0:08:14]} ({But not} 27. Bxe7 $6 Qxc1 28. Rxc1 Rxe7 $11) 27... Nd5 {[%emt 0:01:39]} 28. Qa3 {[%emt 0:04:43]} Nf6 {[%emt 0:00:08]} 29. Bd4 {[%emt 0:00:17]} Qd5 {[%emt 0:01:52]} 30. Qa4 {[%emt 0:00:32]} Ng4 {[%emt 0:08:35]} 31. Re8+ {[%emt 0:03:22]} Kh7 {[%emt 0:00:38]} 32. Qc2+ {[%emt 0:00:24]} Qf5 {[%emt 0:00:04]} 33. Qxf5+ {[%emt 0:06:30]} (33. Qa2 {seems wilder.} h5 34. Rd8 Qf3 35. Qc2+) 33... Rxf5 {[%emt 0:00:03][%mdl 4096] Endgame. KRB-KRN} 34. Re7 {[%emt 0:00:29]} Nf6 {[%emt 0:00:04]} 35. Be5 {[%emt 0:00:55][%cal Og3g4] White is more active.} Kg8 {[%emt 0:01:47]} 36. f4 {[%emt 0:00:13][%cal Og3g4] Threatens to win with g4!} g5 {[%emt 0:04:42]} 37. fxg5 {[%emt 0:00:21]} hxg5 {[%emt 0:00:06]} 38. h5 {[%emt 0:00:38]} Nxh5 {[%emt 0:00:38][%mdl 8192] [#]} ({Black should try} 38... Nd5 $1 $14 39. Rg7+ Kf8) 39. g4 $1 {[%emt 0:00:17][%csl LRf5,LRh5] Weighted Error Value: White=0.05 (flawless) /Black=0.25 (precise) .  Loses game:     	---       	Black=1      Mistake:       	---       	Black=1      Inaccurate:     	White=1     	Black=1      OK:         	White=17    	Black=11     Best:        	White=1     	Black=4      Strong:       	White=1     	---        Brilliant:      	White=1     	---} 1-0

[Event "45th FIDE Olympiad 2024"]
[Site "Budapest"]
[Date "2024.09.18"]
[Round "7.37"]
[White "Ndahangwapo, Heskiel"]
[Black "Kumar, Manoj"]
[Result "1-0"]
[WhiteElo "2011"]
[BlackElo "1951"]
[PlyCount "159"]
[EventDate "2024.09.05"]
[EventType "team-tourn"]
[EventCountry "HUN"]
[WhiteTeam "Namibia"]
[BlackTeam "Fiji"]
[WhiteTeamCountry "NAM"]
[BlackTeamCountry "FIJ"]
[TimeControl "40/5400+30:1800+30"]

1. e4 e5 2. Nf3 Nc6 3. Bb5 a6 4. Ba4 Nf6 5. Qe2 Be7 6. c3 b5 7. Bb3 d6 8. d4 O-O 9. Nbd2 Re8 10. O-O Bf8 11. Rd1 exd4 12. cxd4 h6 13. h3 Bf5 14. Qe3 Nxe4 15. Qf4 Nxd2 16. Bxd2 Ne7 17. Re1 Qd7 18. g4 Be6 19. Bc2 Nd5 20. Qg3 Be7 21. Nh4 Bxh4 22. Qxh4 Nf6 23. Bxh6 gxh6 24. Qxf6 Bxg4 25. Qxh6 Bf5 26. Qg5+ Bg6 27. Bxg6 fxg6 28. Qxg6+ Qg7 29. Qxg7+ Kxg7 30. Rac1 Rxe1+ 31. Rxe1 c5 32. Re6 Rd8 33. dxc5 dxc5 34. Rxa6 Rd2 35. b3 c4 36. bxc4 bxc4 37. Rc6 Rxa2 38. Rxc4 Kg6 39. Rc5 Rb2 40. Kg2 Ra2 41. Kg3 Ra3+ 42. Kg4 Ra1 43. Rc6+ Kg7 44. f4 Rg1+ 45. Kf5 Rh1 46. Rc7+ Kf8 47. Kf6 Kg8 48. Rc8+ Kh7 49. Rc3 Rf1 50. f5 Ra1 51. Rc7+ Kg8 52. h4 Ra6+ 53. Kg5 Rb6 54. f6 Rb1 55. Kg6 Rg1+ 56. Kf5 Rf1+ 57. Kg6 Rg1+ 58. Kf5 Rf1+ 59. Ke5 Re1+ 60. Kd6 Rd1+ 61. Ke7 Re1+ 62. Kd8 Rf1 63. Ke7 Re1+ 64. Kd6 Rd1+ 65. Ke6 Re1+ 66. Kf5 Rf1+ 67. Kg5 Rg1+ 68. Kh6 Kf8 69. h5 Rg2 70. Kh7 Rg1 71. h6 Rg2 72. Rd7 Rg1 73. Rg7 Rf1 74. Kg6 Rg1+ 75. Kf5 Rf1+ 76. Ke5 Re1+ 77. Kd4 Rd1+ 78. Ke3 Rh1 79. h7 Rh6 80. Rg8+ 1-0